fUST/lending_fUST_20240831
["ID","MTS","AMOUNT","RATE_DAILY","PERIOD"]
[336708941,1725053440398,-150.112233,0.000328,5]
[336708942,1725053440409,-150.112233,0.000328,5]
[336708943,1725053440420,-150.112233,0.000328,6]
[336708944,1725053440431,-150.112233,0.000328,9]
[336708945,1725053440443,-150.112233,0.000328,8]
[336708946,1725053440453,-150.112233,0.000328,6]
[336708947,1725053440463,-150.112233,0.000328,5]
[336708948,1725053440472,-150.112233,0.000328,8]
[336708949,1725053440483,-150.112233,0.000328,5]
[336708950,1725053440492,-150.112233,0.000328,5]
[336708951,1725053440502,-150.112233,0.000328,9]
[336708952,1725053440511,-150.112233,0.000328,9]
[336708953,1725053440521,-150.112233,0.000328,9]
[336708954,1725053440531,-150.112233,0.000328,6]
[336708955,1725053440541,-150.112233,0.000328,7]
[336708956,1725053440551,-150.112233,0.000328,5]
[336708957,1725053440561,-151.0,0.00032866,7]
[336708958,1725053440571,-113.71758092,0.00032866,7]
[336708978,1725053446181,-203.44,0.00032698,120]
[336708979,1725053446191,-151.0,0.00032776,7]
[336708980,1725053446200,-1929.350467,0.00032776,7]
[336708981,1725053446210,-47.98954708,0.00032866,7]
[336708982,1725053446219,-161.707128,0.00032866,7]
[336708983,1725053446228,-151.0,0.00032866,7]
[336708984,1725053446237,-151.0,0.00032866,7]
[336708985,1725053446247,-151.0,0.00032866,7]
[336708986,1725053446257,-500.0,0.00032873,5]
[336708987,1725053446268,-500.0,0.00032873,4]
[336708988,1725053446277,-363.41821401,0.00032873,5]
[336708989,1725053446287,-240.01313908,0.00032873,5]
[336708990,1725053446296,-500.0,0.00032873,5]
[336708991,1725053446306,-500.0,0.00032873,5]
[336708992,1725053446315,-500.0,0.00032873,2]
[336708993,1725053446324,-1435.83078771,0.00032875,4]
[336708994,1725053446334,-160.0,0.00032875,10]
[336708995,1725053446348,-160.0,0.00032875,10]
[336708996,1725053446357,-481.304571,0.00032876,7]
[336708997,1725053446367,-481.304571,0.00032876,7]
[336708998,1725053446376,-481.304571,0.00032876,7]
[336708999,1725053446385,-481.304571,0.00032876,7]
[336709000,1725053446395,-481.304571,0.00032876,7]
[336709001,1725053446404,-481.304571,0.00032876,7]
[336709002,1725053446414,-481.304571,0.00032876,7]
[336709003,1725053446423,-481.304571,0.00032876,7]
[336709004,1725053446434,-481.304571,0.00032876,7]
[336709005,1725053446444,-481.304571,0.00032876,7]
[336709006,1725053446454,-481.304571,0.00032876,7]
[336709007,1725053446464,-481.304571,0.00032876,7]
[336709008,1725053446473,-481.304571,0.00032876,7]
[336709009,1725053446483,-481.304571,0.00032876,7]
[336709010,1725053446492,-481.304571,0.00032876,7]
[336709011,1725053446502,-481.304571,0.00032876,7]
[336709012,1725053446511,-151.0,0.00032876,7]
[336709013,1725053446520,-151.0,0.00032876,7]
[336709014,1725053446530,-151.0,0.00032876,7]
[336709015,1725053446540,-151.0,0.00032876,7]
[336709016,1725053446549,-151.0,0.00032876,7]
[336709017,1725053446559,-151.0,0.00032876,7]
[336709018,1725053446570,-151.0,0.00032876,7]
[336709019,1725053446580,-151.0,0.00032876,7]
[336709020,1725053446591,-151.0,0.00032876,7]
[336709021,1725053446601,-151.0,0.00032876,7]
[336709022,1725053446611,-151.0,0.00032876,7]
[336709023,1725053446622,-151.0,0.00032876,7]
[336709024,1725053446635,-289.613281,0.00032876,7]
[336709025,1725053446644,-1474.681449,0.00032876,7]
[336709026,1725053446654,-1474.681449,0.00032876,7]
[336709027,1725053446663,-1474.681449,0.00032876,7]
[336709028,1725053446673,-1474.681449,0.00032876,7]
[336709029,1725053446684,-1366.94844195,0.00032876,7]
[336709124,1725054114346,158.797451,0.00014247,2]
[336709133,1725054379453,8074.38255491,0.0001,2]
[336709136,1725054569158,-158.147144,0.0001863,2]
[336709163,1725054638323,-158.797451,0.00027884,2]
[336709164,1725054638333,-500.0,0.00028766,2]
[336709165,1725054638343,-500.0,0.00028847,2]
[336709166,1725054638352,-167.0,0.0003,2]
[336709167,1725054638362,-151.0,0.00031461,7]
[336709168,1725054638372,-167.0,0.00031644,2]
[336709169,1725054638381,-800.0,0.00032029,7]
[336709170,1725054638392,-504.09584578,0.0003222,7]
[336709171,1725054638402,-151.0,0.00032248,7]
[336709172,1725054638412,-153.68184871,0.00032536,2]
[336709173,1725054638424,-305.0965931,0.0003256,30]
[336709174,1725054638435,-5932.61664069,0.00032561,31]
[336709175,1725054638446,-3078.09694432,0.00032566,2]
[336709176,1725054638459,-153.68184869,0.00032583,2]
[336709177,1725054638468,-850.65,0.00032625,3]
[336709178,1725054638478,-1513.68,0.00032626,3]
[336709179,1725054638488,-2363.36,0.00032626,3]
[336709180,1725054638500,-1969.47,0.00032626,3]
[336709181,1725054638509,-153.68184869,0.00032629,2]
[336709182,1725054638520,-22277.09097902,0.00032635,4]
[336709196,1725054640341,-36826.52299801,0.00032635,4]
[336709197,1725054640576,12.91626109,0.0001863,2]
[336709219,1725054646132,-145.23088291,0.0001863,2]
[336709220,1725054646142,-158.147144,0.00025592,2]
[336709221,1725054646151,-158.147144,0.00032554,2]
[336709222,1725054646331,-630.22245309,0.00032635,4]
[336709249,1725055161356,168.2,0.00017,2]
[336709257,1725055231519,158.797451,0.00014247,2]
[336709311,1725055749116,-158.571329,0.0001863,2]
[336709312,1725055749140,-42.6956263,0.00025205,2]
[336709326,1725055838607,-115.8757027,0.00025205,2]
[336709327,1725055838618,-502.12846895,0.00027311,2]
[336709328,1725055838633,-197.87153105,0.00027311,2]
[336709329,1725055838644,-162.331421,0.00028919,2]
[336709330,1725055838654,-103.40507333,0.00029764,2]
[336709331,1725055838667,-336.40951587,0.00029764,2]
[336709332,1725055838677,-418.0027915,0.00029764,2]
[336709333,1725055838687,-103.40507326,0.0003,120]
[336709334,1725055838698,-47.59492674,0.0003,120]
[336709335,1725055838708,-167.0,0.0003,2]
[336709336,1725055838718,-647.8546537,0.00030262,7]
[336709337,1725055838728,-167.0,0.00031644,2]
[336709338,1725055838739,-150.0,0.00031694,2]
[336709339,1725055838750,-522.0,0.00031694,2]
[336709340,1725055838761,-158.797451,0.00031781,2]
[336709341,1725055838771,-158.571329,0.00031781,2]
[336709342,1725055838781,-300.0,0.00031899,2]
[336709343,1725055838791,-153.1137214,0.00031899,2]
[336709344,1725055838801,-5943.0,0.000319,31]
[336709345,1725055838811,-5040.02269592,0.00032113,2]
[336709346,1725055838823,-150.0,0.00032166,2]
[336709347,1725055838834,-5040.02269593,0.00032394,2]
[336709348,1725055838847,-150.0,0.00032454,2]
[336709349,1725055838857,-3252.25518002,0.00032455,2]
[336709350,1725055838867,-24305.804718,0.000325,5]
[336709351,1725055838876,-304.25994052,0.00032555,2]
[336709352,1725055838887,-2000.0,0.00032556,2]
[336709353,1725055838897,-304.25994049,0.00032583,2]
[336709354,1725055838907,-150.112233,0.000326,9]
[336709355,1725055838919,-500.0,0.0003261,7]
[336709356,1725055838931,-304.25994049,0.00032611,2]
[336709357,1725055838941,-304.25994049,0.00032638,2]
[336709358,1725055838951,-6030.68164189,0.00032655,2]
[336709362,1725055840477,-17410.50372346,0.00032655,2]
[336709363,1725055840492,-1256.2556678,0.00032665,5]
[336709364,1725055840502,-11984.95152976,0.00032666,5]
[336709365,1725055840511,-304.25994049,0.00032666,2]
[336709366,1725055840706,-2525.65273893,0.00032666,2]
[336709367,1725055840717,-500.0,0.00032698,120]
[336709368,1725055840727,-500.0,0.00032698,120]
[336709369,1725055840737,-500.0,0.00032698,120]
[336709370,1725055840747,-150.112233,0.000327,10]
[336709371,1725055840757,-150.112233,0.000327,5]
[336709372,1725055840767,-150.112233,0.000327,6]
[336709373,1725055840777,-150.112233,0.000327,7]
[336709374,1725055840787,-150.112233,0.000327,6]
[336709375,1725055840796,-150.112233,0.000327,7]
[336709376,1725055840806,-150.112233,0.000327,5]
[336709377,1725055840819,-150.112233,0.000327,9]
[336709378,1725055840829,-150.112233,0.000327,9]
[336709379,1725055840841,-500.0,0.00032709,5]
[336709380,1725055840850,-111.33437601,0.00032709,5]
[336709391,1725055843530,-388.66562399,0.00032709,5]
[336709392,1725055843540,-500.0,0.00032709,5]
[336709393,1725055843558,-135.49026771,0.00032709,5]
[336709394,1725055843611,-364.50973229,0.00032709,5]
[336709395,1725055843621,-102.15501857,0.00032709,5]
[336709416,1725055846321,-397.84498143,0.00032709,5]
[336709417,1725055846331,-379.83483614,0.00032709,5]
[336709418,1725055846340,-500.0,0.00032709,5]
[336709419,1725055846349,-243.3887,0.00032712,2]
[336709420,1725055846358,-1367.68,0.00032744,3]
[336709421,1725055846368,-1294.77681428,0.00032745,3]
[336709422,1725055846379,-346.44318572,0.00032745,3]
[336709423,1725055846389,-500.0,0.00032754,2]
[336709425,1725055846398,-317.62533029,0.00032754,2]
[336709426,1725055846408,-244.70704599,0.00032754,2]
[336709427,1725055846417,-209.29703361,0.00032754,2]
[336709428,1725055846426,-603.62949692,0.00032754,2]
[336709429,1725055846435,-109122.943733,0.00032755,4]
[336709430,1725055846445,-109122.943733,0.00032756,4]
[336709431,1725055846454,-500.0,0.00032765,2]
[336709432,1725055846464,-176.5168553,0.00032765,2]
[336709433,1725055846474,-317.78370559,0.00032765,2]
[336709434,1725055846483,-500.0,0.00032765,2]
[336709435,1725055846493,-400.0,0.00032765,2]
[336709436,1725055846502,-500.0,0.00032765,2]
[336709437,1725055846511,-500.0,0.00032765,2]
[336709438,1725055846521,-500.0,0.00032765,2]
[336709439,1725055846531,-500.0,0.00032765,2]
[336709440,1725055846542,-428.229344,0.00032765,2]
[336709441,1725055846555,-500.0,0.00032765,2]
[336709442,1725055846570,-500.0,0.00032765,2]
[336709443,1725055846581,-500.0,0.00032765,2]
[336709444,1725055846591,-500.0,0.00032765,2]
[336709445,1725055846601,-1421.19952409,0.00032765,5]
[336709446,1725055846611,-218245.887465,0.00032766,4]
[336709447,1725055846620,-151.0,0.00032766,7]
[336709448,1725055846632,-151.0,0.00032766,7]
[336709449,1725055846641,-151.0,0.00032766,7]
[336709450,1725055846652,-151.0,0.00032766,7]
[336709451,1725055846663,-151.0,0.00032766,7]
[336709452,1725055846672,-328.655994,0.00032766,7]
[336709453,1725055846682,-328.655994,0.00032766,7]
[336709454,1725055846691,-151.0,0.00032766,7]
[336709455,1725055846700,-151.0,0.00032766,7]
[336709456,1725055846709,-553.38189,0.00032766,7]
[336709457,1725055846718,-553.38189,0.00032766,7]
[336709458,1725055846727,-202.44835,0.00032766,7]
[336709459,1725055846737,-9044.256494,0.00032766,7]
[336709460,1725055846746,-202.44835,0.00032766,7]
[336709461,1725055846755,-9044.256494,0.00032766,7]
[336709462,1725055846765,-2015.407616,0.00032766,7]
[336709463,1725055846776,-151.0,0.00032766,7]
[336709464,1725055846788,-151.0,0.00032766,7]
[336709465,1725055846799,-395.006006,0.00032766,7]
[336709466,1725055846810,-6194.676112,0.00032766,7]
[336709467,1725055846820,-395.006006,0.00032766,7]
[336709468,1725055846831,-6194.676112,0.00032766,7]
[336709469,1725055846843,-1547.284434,0.00032766,7]
[336709470,1725055846854,-1547.284434,0.00032766,7]
[336709471,1725055846865,-339.597049,0.00032766,7]
[336709472,1725055846874,-259.020094,0.00032766,7]
[336709473,1725055846883,-339.597049,0.00032766,7]
[336709474,1725055846893,-151.0,0.00032766,7]
[336709475,1725055846902,-259.020094,0.00032766,7]
[336709476,1725055846912,-151.0,0.00032766,7]
[336709477,1725055846921,-151.0,0.00032766,7]
[336709478,1725055846931,-163.852575,0.00032766,7]
[336709479,1725055846941,-359.403663,0.00032766,7]
[336709480,1725055846951,-359.403663,0.00032766,7]
[336709481,1725055846961,-732.47727,0.00032766,7]
[336709482,1725055846970,-151.0,0.00032766,7]
[336709483,1725055846980,-732.47727,0.00032766,7]
[336709484,1725055846989,-191.537894,0.00032766,7]
[336709485,1725055847000,-2305.688132,0.00032766,7]
[336709486,1725055847011,-2305.688132,0.00032766,7]
[336709487,1725055847023,-302.013875,0.00032766,7]
[336709488,1725055847034,-302.013875,0.00032766,7]
[336709489,1725055847045,-450.16806322,0.00032773,5]
[336709490,1725055847056,-120691.20807182,0.00032776,120]
[336709491,1725055847066,-158.926326,0.00032776,7]
[336709492,1725055847076,-151.222294,0.00032776,7]
[336709493,1725055847086,-151.222294,0.00032776,7]
[336709494,1725055847095,-151.0,0.00032776,7]
[336709495,1725055847105,-151.0,0.00032776,7]
[336709496,1725055847114,-495.755606,0.00032776,7]
[336709497,1725055847124,-495.755606,0.00032776,7]
[336709498,1725055847133,-152.643523,0.00032776,7]
[336709499,1725055847143,-152.643523,0.00032776,7]
[336709500,1725055847152,-2425.979458,0.00032776,7]
[336709501,1725055847162,-2425.979458,0.00032776,7]
[336709502,1725055847172,-151.0,0.00032776,7]
[336709503,1725055847182,-328.655994,0.00032776,7]
[336709504,1725055847193,-328.655994,0.00032776,7]
[336709505,1725055847204,-553.38189,0.00032776,7]
[336709506,1725055847215,-553.38189,0.00032776,7]
[336709507,1725055847226,-9044.256494,0.00032776,7]
[336709508,1725055847236,-9044.256494,0.00032776,7]
[336709509,1725055847247,-2015.407616,0.00032776,7]
[336709510,1725055847259,-151.0,0.00032776,7]
[336709511,1725055847268,-395.006006,0.00032776,7]
[336709512,1725055847279,-6194.676112,0.00032776,7]
[336709513,1725055847291,-395.006006,0.00032776,7]
[336709514,1725055847301,-6194.676112,0.00032776,7]
[336709515,1725055847312,-1547.284434,0.00032776,7]
[336709516,1725055847323,-1547.284434,0.00032776,7]
[336709517,1725055847332,-339.597049,0.00032776,7]
[336709518,1725055847342,-259.020094,0.00032776,7]
[336709519,1725055847516,-339.597049,0.00032776,7]
[336709520,1725055847529,-151.0,0.00032776,7]
[336709521,1725055847539,-259.020094,0.00032776,7]
[336709522,1725055847549,-151.0,0.00032776,7]
[336709523,1725055847562,-151.0,0.00032776,7]
[336709524,1725055847572,-151.0,0.00032776,7]
[336709525,1725055847582,-151.0,0.00032776,7]
[336709526,1725055847593,-151.0,0.00032776,7]
[336709527,1725055847602,-219.538881,0.00032776,7]
[336709528,1725055847612,-151.0,0.00032776,7]
[336709529,1725055847622,-151.0,0.00032776,7]
[336709530,1725055847632,-151.0,0.00032776,7]
[336709531,1725055847642,-151.0,0.00032776,7]
[336709532,1725055847652,-359.403663,0.00032776,7]
[336709533,1725055847661,-359.403663,0.00032776,7]
[336709534,1725055847670,-2523.44623,0.00032776,7]
[336709535,1725055847680,-2523.44623,0.00032776,7]
[336709536,1725055847689,-732.47727,0.00032776,7]
[336709537,1725055847699,-732.47727,0.00032776,7]
[336709538,1725055847708,-151.0,0.00032776,7]
[336709539,1725055847719,-732.47727,0.00032776,7]
[336709540,1725055847729,-732.47727,0.00032776,7]
[336709541,1725055847739,-266.576713,0.00032776,7]
[336709542,1725055847748,-266.576713,0.00032776,7]
[336709543,1725055847757,-2305.688132,0.00032776,7]
[336709544,1725055847766,-2305.688132,0.00032776,7]
[336709545,1725055847775,-2305.688132,0.00032776,7]
[336709546,1725055847785,-2305.688132,0.00032776,7]
[336709547,1725055847794,-302.013875,0.00032776,7]
[336709548,1725055847807,-302.013875,0.00032776,7]
[336709549,1725055847816,-302.013875,0.00032776,7]
[336709550,1725055847825,-302.013875,0.00032776,7]
[336709551,1725055847834,-150.112233,0.000328,8]
[336709552,1725055847846,-150.112233,0.000328,6]
[336709553,1725055847856,-150.112233,0.000328,5]
[336709554,1725055847865,-150.112233,0.000328,6]
[336709555,1725055847874,-150.112233,0.000328,10]
[336709556,1725055847884,-150.112233,0.000328,5]
[336709557,1725055847894,-150.112233,0.000328,6]
[336709558,1725055847904,-150.112233,0.000328,8]
[336709559,1725055847914,-150.112233,0.000328,10]
[336709560,1725055847924,-150.112233,0.000328,9]
[336709561,1725055847933,-150.112233,0.000328,8]
[336709562,1725055847943,-150.112233,0.000328,5]
[336709563,1725055847952,-150.112233,0.000328,6]
[336709564,1725055847961,-150.112233,0.000328,5]
[336709565,1725055847971,-150.112233,0.000328,7]
[336709566,1725055847980,-150.112233,0.000328,10]
[336709567,1725055847989,-151.0,0.00032846,7]
[336709568,1725055847998,-151.0,0.00032846,7]
[336709569,1725055848008,-151.0,0.00032846,7]
[336709570,1725055848019,-151.0,0.00032846,7]
[336709571,1725055848029,-2996.420848,0.00032846,2]
[336709572,1725055848040,-151.0,0.00032846,7]
[336709573,1725055848051,-151.0,0.00032846,7]
[336709574,1725055848063,-151.0,0.00032846,7]
[336709575,1725055848072,-2523.44623,0.00032846,7]
[336709576,1725055848082,-2523.44623,0.00032846,7]
[336709577,1725055848092,-732.47727,0.00032846,7]
[336709578,1725055848101,-151.0,0.00032846,7]
[336709579,1725055848111,-732.47727,0.00032846,7]
[336709580,1725055848121,-266.576713,0.00032846,7]
[336709581,1725055848132,-266.576713,0.00032846,7]
[336709582,1725055848142,-2305.688132,0.00032846,7]
[336709583,1725055848152,-2305.688132,0.00032846,7]
[336709584,1725055848161,-302.013875,0.00032846,7]
[336709585,1725055848172,-302.013875,0.00032846,7]
[336709586,1725055848182,-730.653218,0.00032856,7]
[336709587,1725055848192,-730.653218,0.00032856,7]
[336709588,1725055848201,-151.0,0.00032856,7]
[336709589,1725055848211,-1183.608907,0.00032856,7]
[336709590,1725055848222,-1183.608907,0.00032856,7]
[336709591,1725055848233,-759.36064,0.00032856,7]
[336709592,1725055848243,-759.36064,0.00032856,7]
[336709593,1725055848253,-1111.397737,0.00032856,7]
[336709594,1725055848263,-1111.397737,0.00032856,7]
[336709595,1725055848272,-151.0,0.00032856,7]
[336709596,1725055848282,-153.621372,0.00032856,7]
[336709597,1725055848292,-151.0,0.00032856,7]
[336709598,1725055848303,-153.621372,0.00032856,7]
[336709599,1725055848313,-300.628249,0.00032856,7]
[336709600,1725055848323,-187.566152,0.00032856,7]
[336709601,1725055848332,-187.566152,0.00032856,7]
[336709602,1725055848343,-300.628249,0.00032856,7]
[336709603,1725055848352,-187.566152,0.00032856,7]
[336709604,1725055848362,-187.566152,0.00032856,7]
[336709605,1725055848372,-151.0,0.00032856,7]
[336709606,1725055848382,-151.0,0.00032856,7]
[336709607,1725055848392,-151.0,0.00032856,7]
[336709608,1725055848402,-151.0,0.00032856,7]
[336709609,1725055848412,-151.0,0.00032856,7]
[336709610,1725055848422,-151.0,0.00032856,7]
[336709611,1725055848433,-255.458788,0.00032856,7]
[336709612,1725055848442,-255.458788,0.00032856,7]
[336709613,1725055848452,-328.655994,0.00032856,7]
[336709614,1725055848462,-328.655994,0.00032856,7]
[336709615,1725055848472,-151.0,0.00032856,7]
[336709616,1725055848483,-151.0,0.00032856,7]
[336709617,1725055848493,-553.38189,0.00032856,7]
[336709618,1725055848502,-553.38189,0.00032856,7]
[336709619,1725055848512,-202.44835,0.00032856,7]
[336709620,1725055848522,-202.44835,0.00032856,7]
[336709621,1725055848532,-9044.256494,0.00032856,7]
[336709622,1725055848542,-9044.256494,0.00032856,7]
[336709623,1725055848552,-2015.407616,0.00032856,7]
[336709624,1725055848563,-151.0,0.00032856,7]
[336709625,1725055848573,-395.006006,0.00032856,7]
[336709626,1725055848583,-6194.676112,0.00032856,7]
[336709627,1725055848593,-6194.676112,0.00032856,7]
[336709628,1725055848603,-395.006006,0.00032856,7]
[336709629,1725055848614,-6194.676112,0.00032856,7]
[336709630,1725055848624,-6194.676112,0.00032856,7]
[336709631,1725055848635,-1547.284434,0.00032856,7]
[336709632,1725055848644,-1547.284434,0.00032856,7]
[336709633,1725055848654,-1547.284434,0.00032856,7]
[336709634,1725055848664,-1547.284434,0.00032856,7]
[336709635,1725055848673,-339.597049,0.00032856,7]
[336709636,1725055848683,-259.020094,0.00032856,7]
[336709637,1725055848692,-259.020094,0.00032856,7]
[336709638,1725055848702,-339.597049,0.00032856,7]
[336709639,1725055848711,-151.0,0.00032856,7]
[336709640,1725055848721,-151.0,0.00032856,7]
[336709641,1725055848730,-259.020094,0.00032856,7]
[336709642,1725055848741,-259.020094,0.00032856,7]
[336709643,1725055848750,-151.0,0.00032856,7]
[336709644,1725055848759,-151.0,0.00032856,7]
[336709645,1725055848769,-151.0,0.00032856,7]
[336709646,1725055848779,-151.0,0.00032856,7]
[336709647,1725055848788,-151.0,0.00032856,7]
[336709648,1725055848797,-151.0,0.00032856,7]
[336709649,1725055848808,-359.403663,0.00032856,7]
[336709650,1725055848817,-359.403663,0.00032856,7]
[336709651,1725055848827,-359.403663,0.00032856,7]
[336709652,1725055848837,-359.403663,0.00032856,7]
[336709653,1725055848848,-2523.44623,0.00032856,7]
[336709654,1725055848858,-2523.44623,0.00032856,7]
[336709655,1725055848868,-732.47727,0.00032856,7]
[336709656,1725055848878,-151.0,0.00032856,7]
[336709657,1725055848887,-732.47727,0.00032856,7]
[336709658,1725055848897,-2305.688132,0.00032856,7]
[336709659,1725055848907,-2305.688132,0.00032856,7]
[336709660,1725055848917,-302.013875,0.00032856,7]
[336709661,1725055848927,-302.013875,0.00032856,7]
[336709662,1725055848936,-165.097508,0.00032866,7]
[336709663,1725055848946,-165.097508,0.00032866,7]
[336709664,1725055848955,-151.0,0.00032866,7]
[336709665,1725055848964,-151.0,0.00032866,7]
[336709666,1725055848974,-151.222294,0.00032866,7]
[336709667,1725055848983,-151.222294,0.00032866,7]
[336709668,1725055848993,-151.0,0.00032866,7]
[336709669,1725055849002,-495.755606,0.00032866,7]
[336709670,1725055849012,-495.755606,0.00032866,7]
[336709671,1725055849021,-152.643523,0.00032866,7]
[336709672,1725055849031,-152.643523,0.00032866,7]
[336709673,1725055849041,-151.0,0.00032866,7]
[336709674,1725055849050,-269.212603,0.00032866,7]
[336709675,1725055849060,-151.0,0.00032866,7]
[336709676,1725055849070,-151.0,0.00032866,7]
[336709677,1725055849081,-151.0,0.00032866,7]
[336709678,1725055849091,-266.576713,0.00032866,7]
[336709679,1725055849101,-266.576713,0.00032866,7]
[336709680,1725055849111,-150.01,0.00032872,2]
[336709681,1725055849122,-5641.53244555,0.00032872,2]
[336709682,1725055849133,-151.0,0.00032872,7]
[336709683,1725055849142,-151.0,0.00032872,7]
[336709684,1725055849152,-151.0,0.00032872,7]
[336709685,1725055849162,-151.0,0.00032872,7]
[336709686,1725055849172,-202.44835,0.00032872,7]
[336709687,1725055849181,-202.44835,0.00032872,7]
[336709688,1725055849191,-339.1558917,0.00032873,2]
[336709689,1725055849200,-500.0,0.00032873,4]
[336709690,1725055849210,-151.0,0.00032876,7]
[336709691,1725055849223,-165.097508,0.00032876,7]
[336709692,1725055849233,-165.097508,0.00032876,7]
[336709693,1725055849243,-165.097508,0.00032876,7]
[336709694,1725055849252,-165.097508,0.00032876,7]
[336709695,1725055849261,-165.097508,0.00032876,7]
[336709696,1725055849271,-165.097508,0.00032876,7]
[336709697,1725055849282,-165.097508,0.00032876,7]
[336709698,1725055849293,-165.097508,0.00032876,7]
[336709699,1725055849303,-165.097508,0.00032876,7]
[336709700,1725055849313,-165.097508,0.00032876,7]
[336709701,1725055849323,-165.097508,0.00032876,7]
[336709702,1725055849333,-165.097508,0.00032876,7]
[336709703,1725055849343,-165.097508,0.00032876,7]
[336709704,1725055849352,-165.097508,0.00032876,7]
[336709705,1725055849362,-165.097508,0.00032876,7]
[336709706,1725055849371,-165.097508,0.00032876,7]
[336709707,1725055849380,-165.097508,0.00032876,7]
[336709708,1725055849389,-165.097512,0.00032876,7]
[336709709,1725055849399,-151.0,0.00032876,7]
[336709710,1725055849408,-151.0,0.00032876,7]
[336709711,1725055849418,-298.4339,0.00032876,7]
[336709712,1725055849427,-151.0,0.00032876,7]
[336709713,1725055849436,-151.0,0.00032876,7]
[336709714,1725055849445,-151.0,0.00032876,7]
[336709715,1725055849454,-151.0,0.00032876,7]
[336709716,1725055849465,-192.956182,0.00032876,7]
[336709717,1725055849475,-151.0,0.00032876,7]
[336709718,1725055849484,-151.0,0.00032876,7]
[336709719,1725055849494,-151.0,0.00032876,7]
[336709720,1725055849504,-151.0,0.00032876,7]
[336709721,1725055849514,-151.0,0.00032876,7]
[336709722,1725055849523,-185.507539,0.00032876,7]
[336709723,1725055849533,-151.222294,0.00032876,7]
[336709724,1725055849544,-151.222294,0.00032876,7]
[336709725,1725055849554,-151.222294,0.00032876,7]
[336709726,1725055849571,-151.222294,0.00032876,7]
[336709727,1725055849580,-151.222294,0.00032876,7]
[336709728,1725055849589,-151.222294,0.00032876,7]
[336709729,1725055849598,-151.222294,0.00032876,7]
[336709730,1725055849607,-151.222294,0.00032876,7]
[336709731,1725055849617,-151.222294,0.00032876,7]
[336709732,1725055849626,-151.222294,0.00032876,7]
[336709733,1725055849636,-151.222294,0.00032876,7]
[336709734,1725055849645,-151.222294,0.00032876,7]
[336709735,1725055849656,-151.222294,0.00032876,7]
[336709736,1725055849665,-151.222294,0.00032876,7]
[336709737,1725055849675,-151.222294,0.00032876,7]
[336709738,1725055849685,-151.22229892,0.00032876,7]
[336709739,1725055849695,-151.0,0.00032876,7]
[336709740,1725055849705,-151.0,0.00032876,7]
[336709741,1725055849714,-151.0,0.00032876,7]
[336709742,1725055849724,-151.0,0.00032876,7]
[336709743,1725055849733,-151.0,0.00032876,7]
[336709744,1725055849743,-151.0,0.00032876,7]
[336709745,1725055849754,-151.0,0.00032876,7]
[336709746,1725055849764,-151.0,0.00032876,7]
[336709747,1725055849774,-151.0,0.00032876,7]
[336709748,1725055849784,-151.0,0.00032876,7]
[336709749,1725055849794,-151.0,0.00032876,7]
[336709750,1725055849808,-151.0,0.00032876,7]
[336709751,1725055849818,-151.0,0.00032876,7]
[336709752,1725055849828,-151.0,0.00032876,7]
[336709753,1725055849838,-203.06676,0.00032876,7]
[336709754,1725055849850,-595.924874,0.00032876,7]
[336709755,1725055849860,-595.924874,0.00032876,7]
[336709756,1725055849870,-595.924874,0.00032876,7]